[Event "44th Chess Olympiad Open 2022"]
[Site "Chennai"]
[Date "2022.08.02"]
[Round "5.36"]
[White "Toczek, Grzegorz"]
[Black "Stanojoski, Zvonko"]
[Result "1/2-1/2"]
[WhiteElo "2287"]
[BlackElo "2412"]
[Annotator "RC"]
[PlyCount "104"]
[EventDate "2022.??.??"]
[TimeControl "60"]

1. e4 {[%emt 0:00:04]} c5 {[%emt 0:00:17]} 2. Nf3 {[%emt 0:00:09]} d6 {[%emt 0:
00:00]} 3. d4 {[%emt 0:00:05]} cxd4 {[%emt 0:00:05]} 4. Nxd4 {[%emt 0:00:04]}
Nf6 {[%emt 0:00:08]} 5. Nc3 {[%emt 0:00:03]} g6 {[%emt 0:00:11]} 6. Be3 {
[%emt 0:00:04]} Bg7 {[%emt 0:00:10]} 7. f3 {[%emt 0:00:04]} O-O {[%emt 0:00:21]
} 8. Qd2 {[%emt 0:00:02]} Nc6 {[%emt 0:00:15]} 9. O-O-O {[%emt 0:00:04]} Nxd4 {
[%emt 0:00:27]} 10. Bxd4 {[%emt 0:00:04]} Be6 {[%emt 0:00:08]} 11. Kb1 {
[%emt 0:00:04]} Qc7 {[%emt 0:01:08]} 12. h4 {[%emt 0:03:53]} Rfc8 {[%emt 0:00:
00]} 13. h5 {[%emt 0:00:29]} Qa5 {[%emt 0:01:57]} 14. hxg6 {[%emt 0:00:18]}
fxg6 {[%emt 0:02:11]} 15. a3 {[%emt 0:00:15]} Rc6 {[%emt 0:05:55]} 16. Bd3 {
[%emt 0:24:33]} Bf7 {[%emt 0:06:02]} 17. Qe1 {[%emt 0:14:00]} e5 {[%emt 0:00:
00]} 18. Be3 {[%emt 0:01:17]} Nh5 {[%emt 0:00:30]} 19. Bd2 {[%emt 0:04:42]} Qd8
{[%emt 0:12:10]} 20. Nd5 {[%emt 0:02:17]} Nf4 {[%emt 0:09:47]} 21. Nb4 {
[%emt 0:22:48]} Rc7 {[%emt 0:12:53]} 22. Bf1 {[%emt 0:00:30]} a5 {[%emt 0:00:
00]} 23. Na2 {[%emt 0:02:33]} b6 {[%emt 0:04:12]} 24. Nc3 {[%emt 0:00:50]} Rac8
{[%emt 0:00:30]} 25. Qh4 {[%emt 0:02:16]} Qxh4 {[%emt 0:04:13]} 26. Rxh4 {
[%emt 0:00:05]} g5 {[%emt 0:00:07]} 27. Rh2 {[%emt 0:00:24]} Rd7 {[%emt 0:00:
00]} 28. Bb5 {[%emt 0:03:11]} Rdd8 {[%emt 0:00:25]} 29. Be3 {[%emt 0:00:18]}
Rb8 {[%emt 0:01:06]} 30. Na4 {[%emt 0:07:39]} d5 {[%emt 0:00:19]} 31. exd5 {
[%emt 0:01:52]} Bxd5 {[%emt 0:04:53]} 32. Bxf4 {[%emt 0:00:17]} Bxf3 {[%emt 0:
00:00]} 33. Rxd8+ {[%emt 0:02:07]} Rxd8 {[%emt 0:00:01]} 34. Bxg5 {[%emt 0:00:
00]} Rd1+ {[%emt 0:00:07]} 35. Ka2 {[%emt 0:00:05]} Bd5+ {[%emt 0:00:13]} 36.
c4 {[%emt 0:00:26]} Bb7 {[%emt 0:01:05]} 37. g3 {[%emt 0:00:57]} Rd3 {[%emt 0:
00:00]} 38. Nxb6 {[%emt 0:05:29]} Rxg3 {[%emt 0:00:09]} 39. Bh4 {[%emt 0:00:05]
} Rg6 {[%emt 0:01:16]} 40. Nd5 {[%emt 0:00:35]} Rg1 {[%emt 0:01:25]} 41. Ne7+ {
[%emt 0:33:11]} Kf7 {[%emt 0:30:08]} 42. c5 {[%emt 0:01:33]} Be4 {[%emt 0:00:
00]} 43. c6 {[%emt 0:00:00]} Rc1 {[%emt 0:00:00]} 44. b3 {[%emt 0:00:00]} a4 {
[%emt 0:00:00]} 45. Bc4+ {[%emt 0:00:00]} Ke8 {[%emt 0:00:00]} 46. Rd2 {
[%emt 0:00:00]} Rh1 {[%emt 0:00:00]} 47. c7 {[%emt 0:00:00]} Bb1+ {[%emt 0:00:
00]} 48. Ka1 {[%emt 0:00:00]} Bd3+ {[%emt 0:00:00]} 49. Ka2 {[%emt 0:00:00]}
Bb1+ {[%emt 0:00:00]} 50. Ka1 {[%emt 0:00:00]} Bd3+ {[%emt 0:00:00]} 51. Ka2 {
[%emt 0:00:00]} Bb1+ {[%emt 0:00:00]} 52. Ka1 {[%emt 0:00:00]} Bd3+ {[%emt 0:
00:00]} 1/2-1/2

[Event "44th Chess Olympiad Open 2022"]
[Site "Chennai"]
[Date "2022.08.02"]
[Round "5.36"]
[White "Veljanoski, Andrej"]
[Black "Bullen, Alex"]
[Result "1/2-1/2"]
[WhiteElo "2162"]
[BlackElo "2106"]
[Annotator "NA RC"]
[PlyCount "81"]
[EventDate "2022.??.??"]
[TimeControl "60"]

1. e4 {[%emt 0:00:33]} c6 {[%emt 0:00:06]} 2. d4 {[%emt 0:00:06]} d5 {[%emt 0:
00:00]} 3. e5 {[%emt 0:01:01]} Bf5 {[%emt 0:00:06]} 4. Nf3 {[%emt 0:00:06]} e6
{[%emt 0:00:08]} 5. Be2 {[%emt 0:00:06]} Ne7 {[%emt 0:00:09]} 6. O-O {[%emt 0:
00:00]} h6 {[%emt 0:00:03]} 7. Nbd2 {[%emt 0:01:08]} Nd7 {[%emt 0:00:08]} 8.
Nb3 {[%emt 0:01:14]} g5 {[%emt 0:00:07]} 9. a4 {[%emt 0:01:10]} Qc7 {[%emt 0:
00:00]} 10. a5 {[%emt 0:03:47]} a6 {[%emt 0:00:07]} 11. Bd2 {[%emt 0:03:39]}
O-O-O {[%emt 0:00:15]} 12. Ne1 {[%emt 0:08:03]} f6 {[%emt 0:01:35]} 13. exf6 {
[%emt 0:02:00]} Ng6 {[%emt 0:02:09]} 14. g4 {[%emt 0:03:17]} Be4 {[%emt 0:00:
00]} 15. f3 {[%emt 0:00:14]} Bd6 {[%emt 0:00:22]} 16. fxe4 {[%emt 0:04:25]}
Bxh2+ {[%emt 0:00:14]} 17. Kh1 {[%emt 0:01:15]} Qg3 {[%emt 0:02:41]} 18. Nf3 {
[%emt 0:07:49]} Nh4 {[%emt 0:02:43]} 19. Rg1 {[%emt 0:03:38]} Bxg1 {[%emt 0:00:
00]} 20. Qxg1 {[%emt 0:00:11]} Qxg1+ {[%emt 0:11:02]} 21. Rxg1 {[%emt 0:06:49]}
Nxf6 {[%emt 0:04:44]} 22. Nxh4 {[%emt 0:01:32]} gxh4 {[%emt 0:02:16]} 23. Nc5 {
[%emt 0:14:26]} Nxe4 {[%emt 0:05:38]} 24. Nxe4 {[%emt 0:00:10]} dxe4 {[%emt 0:
00:00]} 25. Bc4 {[%emt 0:00:46]} e5 {[%emt 0:02:41]} 26. g5 {[%emt 0:03:35]}
hxg5 {[%emt 0:17:04]} 27. Bxg5 {[%emt 0:01:03]} exd4 {[%emt 0:06:56]} 28. Be6+
{[%emt 0:06:48]} Kb8 {[%emt 0:01:52]} 29. Bxd8 {[%emt 0:01:17]} Rxd8 {[%emt 0:
00:00]} 30. Bf5 {[%emt 0:04:40]} e3 {[%emt 0:08:53]} 31. Bd3 {[%emt 0:00:00]}
Rd5 {[%emt 0:04:00]} 32. Rg8+ {[%emt 0:08:49]} Kc7 {[%emt 0:01:46]} 33. Rg7+ {
[%emt 0:00:00]} Kb8 {[%emt 0:01:28]} 34. Kg2 {[%emt 0:00:00]} Rxa5 {[%emt 0:00:
00]} 35. Rh7 {[%emt 0:01:23]} Rg5+ {[%emt 0:09:22]} 36. Kh3 {[%emt 0:05:08]}
Re5 {[%emt 0:01:02]} 37. Be2 {[%emt 0:01:01]} Rc5 {[%emt 0:01:28]} 38. Bd3 {
[%emt 0:00:08]} Re5 {[%emt 0:00:14]} 39. Be2 {[%emt 0:00:05]} Rc5 {[%emt 0:00:
00]} 40. Bd3 {[%emt 0:00:10]} Re5 {[%emt 0:00:29]} 41. Be2 {[%emt 0:30:16]}
1/2-1/2

[Event "44th Chess Olympiad Open 2022"]
[Site "Chennai"]
[Date "2022.08.02"]
[Round "5.37"]
[White "Ibarra Chami, Luis Fernando"]
[Black "Altorky, Amer"]
[Result "1-0"]
[WhiteElo "2452"]
[BlackElo "2040"]
[Annotator "RC"]
[PlyCount "49"]
[EventDate "2022.??.??"]
[TimeControl "60"]

1. e4 {[%emt 0:00:03]} c5 {[%emt 0:00:12]} 2. Nf3 {[%emt 0:00:13]} a6 {[%emt 0:
00:00]} 3. c4 {[%emt 0:01:30]} e6 {[%emt 0:00:10]} 4. Nc3 {[%emt 0:01:00]} Qc7
{[%emt 0:00:06]} 5. d4 {[%emt 0:00:26]} cxd4 {[%emt 0:00:08]} 6. Nxd4 {[%emt 0:
00:00]} Nf6 {[%emt 0:00:07]} 7. Qd3 {[%emt 0:01:18]} Nc6 {[%emt 0:02:18]} 8.
Nxc6 {[%emt 0:01:21]} dxc6 {[%emt 0:00:05]} 9. Be2 {[%emt 0:09:28]} Be7 {
[%emt 0:08:00]} 10. f4 {[%emt 0:02:26]} e5 {[%emt 0:20:48]} 11. O-O {[%emt 0:
00:00]} O-O {[%emt 0:05:44]} 12. Kh1 {[%emt 0:08:14]} Rd8 {[%emt 0:04:30]} 13.
Qg3 {[%emt 0:01:28]} exf4 {[%emt 0:08:42]} 14. Bxf4 {[%emt 0:00:54]} Qd7 {
[%emt 0:01:22]} 15. Na4 {[%emt 0:09:23]} Nxe4 {[%emt 0:07:36]} 16. Qf3 {
[%emt 0:07:02]} Qe6 {[%emt 0:12:36]} 17. Nb6 {[%emt 0:00:54]} g5 {[%emt 0:00:
00]} 18. Nxa8 {[%emt 0:03:04]} gxf4 {[%emt 0:00:05]} 19. Qxf4 {[%emt 0:07:40]}
Rd2 {[%emt 0:09:28]} 20. Bf3 {[%emt 0:07:59]} Bd6 {[%emt 0:04:04]} 21. Qxe4 {
[%emt 0:06:45]} Qh6 {[%emt 0:01:48]} 22. h4 {[%emt 0:01:19]} Bh3 {[%emt 0:00:
00]} 23. gxh3 {[%emt 0:03:51]} Rh2+ {[%emt 0:00:06]} 24. Kg1 {[%emt 0:00:02]}
Qd2 {[%emt 0:00:12]} 25. Bg2 {[%emt 0:01:32]} 1-0

[Event "44th Chess Olympiad Open 2022"]
[Site "Chennai"]
[Date "2022.08.02"]
[Round "5.37"]
[White "Koniahli, Malek."]
[Black "Diaz Rosas, Julio Cesar"]
[Result "1/2-1/2"]
[WhiteElo "2238"]
[BlackElo "2328"]
[Annotator "RC"]
[PlyCount "120"]
[EventDate "2022.??.??"]
[TimeControl "60"]

1. d4 {[%emt 0:00:04]} d5 {[%emt 0:00:09]} 2. c4 {[%emt 0:00:15]} e6 {[%emt 0:
00:00]} 3. Nf3 {[%emt 0:00:09]} a6 {[%emt 0:00:07]} 4. Nc3 {[%emt 0:01:17]}
dxc4 {[%emt 0:00:09]} 5. a4 {[%emt 0:01:48]} Nc6 {[%emt 0:00:07]} 6. e3 {
[%emt 0:01:02]} Na5 {[%emt 0:00:37]} 7. Nd2 {[%emt 0:00:43]} c5 {[%emt 0:03:44]
} 8. Nxc4 {[%emt 0:00:33]} cxd4 {[%emt 0:01:21]} 9. exd4 {[%emt 0:00:51]} Nf6 {
[%emt 0:00:57]} 10. Ne5 {[%emt 0:01:52]} Bb4 {[%emt 0:03:01]} 11. Bd3 {[%emt 0:
00:00]} b6 {[%emt 0:05:18]} 12. O-O {[%emt 0:03:51]} Bb7 {[%emt 0:00:19]} 13.
Bg5 {[%emt 0:01:43]} h6 {[%emt 0:01:04]} 14. Be3 {[%emt 0:04:28]} Nc6 {[%emt 0:
00:00]} 15. Rc1 {[%emt 0:04:38]} Nxe5 {[%emt 0:21:18]} 16. dxe5 {[%emt 0:03:08]
} Bxc3 {[%emt 0:00:07]} 17. bxc3 {[%emt 0:05:33]} Qd5 {[%emt 0:04:15]} 18. f3 {
[%emt 0:00:13]} Qxe5 {[%emt 0:00:53]} 19. Re1 {[%emt 0:04:03]} Qc7 {[%emt 0:00:
00]} 20. Qb3 {[%emt 0:16:59]} Nd5 {[%emt 0:03:00]} 21. Bd4 {[%emt 0:00:45]} O-O
{[%emt 0:01:36]} 22. c4 {[%emt 0:01:58]} Nf4 {[%emt 0:00:14]} 23. Bf1 {[%emt 0:
00:00]} Qe7 {[%emt 0:07:09]} 24. Qxb6 {[%emt 0:04:12]} Rfc8 {[%emt 0:02:07]}
25. Qb2 {[%emt 0:10:21]} f6 {[%emt 0:03:46]} 26. Be3 {[%emt 0:00:53]} Ng6 {
[%emt 0:05:14]} 27. Qf2 {[%emt 0:00:40]} Ne5 {[%emt 0:02:19]} 28. Qg3 {[%emt 0:
00:00]} Kf8 {[%emt 0:02:45]} 29. a5 {[%emt 0:07:52]} Rd8 {[%emt 0:01:31]} 30.
Bb6 {[%emt 0:03:08]} Nd3 {[%emt 0:05:14]} 31. Bxd3 {[%emt 0:02:07]} Rxd3 {
[%emt 0:00:03]} 32. Rcd1 {[%emt 0:03:52]} Rxd1 {[%emt 0:02:07]} 33. Rxd1 {
[%emt 0:00:01]} e5 {[%emt 0:01:17]} 34. Qg4 {[%emt 0:01:54]} Bc6 {[%emt 0:00:
00]} 35. c5 {[%emt 0:00:37]} e4 {[%emt 0:02:16]} 36. fxe4 {[%emt 0:04:02]} Qxe4
{[%emt 0:00:06]} 37. Qxe4 {[%emt 0:00:36]} Bxe4 {[%emt 0:00:03]} 38. Rd7 {
[%emt 0:00:06]} Rc8 {[%emt 0:02:25]} 39. Bc7 {[%emt 0:02:27]} Bc6 {[%emt 0:00:
00]} 40. Bd6+ {[%emt 0:00:04]} Kg8 {[%emt 0:00:05]} 41. Ra7 {[%emt 0:30:07]}
Bb5 {[%emt 0:30:31]} 42. Kf2 {[%emt 0:00:22]} Re8 {[%emt 0:00:21]} 43. Rc7 {
[%emt 0:03:43]} Re2+ {[%emt 0:01:36]} 44. Kf3 {[%emt 0:00:12]} Rc2 {[%emt 0:00:
00]} 45. g4 {[%emt 0:01:25]} Rc4 {[%emt 0:00:37]} 46. h4 {[%emt 0:00:00]} Ba4 {
[%emt 0:00:00]} 47. g5 {[%emt 0:00:00]} hxg5 {[%emt 0:00:00]} 48. hxg5 {
[%emt 0:00:00]} fxg5 {[%emt 0:00:00]} 49. Be5 {[%emt 0:00:00]} g6 {[%emt 0:00:
00]} 50. Ke3 {[%emt 0:00:00]} g4 {[%emt 0:00:00]} 51. Bd4 {[%emt 0:00:00]} Kf8
{[%emt 0:00:00]} 52. Be5 {[%emt 0:00:00]} Kg8 {[%emt 0:00:00]} 53. Bd4 {
[%emt 0:00:10]} Kf8 {[%emt 0:00:00]} 54. Be5 {[%emt 0:00:23]} Ke8 {[%emt 0:00:
00]} 55. Bd6 {[%emt 0:00:25]} Kd8 {[%emt 0:00:00]} 56. Ra7 {[%emt 0:00:31]} Bb5
{[%emt 0:00:00]} 57. Rg7 {[%emt 0:02:22]} Be8 {[%emt 0:00:00]} 58. Ra7 {
[%emt 0:02:00]} Bb5 {[%emt 0:00:00]} 59. Rg7 {[%emt 0:00:41]} Be8 {[%emt 0:00:
00]} 60. Ra7 {[%emt 0:01:35]} Bb5 {[%emt 0:00:00]} 1/2-1/2

[Event "44th Chess Olympiad Open 2022"]
[Site "Chennai"]
[Date "2022.08.02"]
[Round "5.37"]
[White "Capo Vidal, Uriel"]
[Black "Eiti, Bashir"]
[Result "0-1"]
[WhiteElo "2215"]
[BlackElo "2337"]
[Annotator "RC"]
[PlyCount "98"]
[EventDate "2022.??.??"]
[TimeControl "60"]

1. d4 {[%emt 0:00:05]} d5 {[%emt 0:00:19]} 2. c4 {[%emt 0:00:29]} dxc4 {
[%emt 0:00:23]} 3. Nf3 {[%emt 0:01:15]} Nf6 {[%emt 0:00:24]} 4. e3 {[%emt 0:00:
00]} Bg4 {[%emt 0:00:35]} 5. Bxc4 {[%emt 0:00:54]} e6 {[%emt 0:00:37]} 6. Nc3 {
[%emt 0:04:56]} a6 {[%emt 0:02:51]} 7. h3 {[%emt 0:03:30]} Bh5 {[%emt 0:01:32]}
8. O-O {[%emt 0:06:43]} Nc6 {[%emt 0:02:14]} 9. Be2 {[%emt 0:01:25]} Bd6 {
[%emt 0:00:40]} 10. b3 {[%emt 0:02:55]} O-O {[%emt 0:02:43]} 11. Bb2 {[%emt 0:
00:00]} Qe7 {[%emt 0:05:19]} 12. Ne5 {[%emt 0:03:46]} Bxe2 {[%emt 0:02:05]} 13.
Nxc6 {[%emt 0:05:22]} Qe8 {[%emt 0:02:35]} 14. Qxe2 {[%emt 0:02:50]} Qxc6 {
[%emt 0:00:07]} 15. Rac1 {[%emt 0:00:46]} Rfe8 {[%emt 0:37:45]} 16. e4 {
[%emt 0:06:25]} Bf4 {[%emt 0:03:39]} 17. Rc2 {[%emt 0:01:15]} Qd7 {[%emt 0:00:
00]} 18. Rd1 {[%emt 0:02:10]} Rad8 {[%emt 0:04:58]} 19. Na4 {[%emt 0:05:10]} c6
{[%emt 0:05:32]} 20. Nc5 {[%emt 0:02:14]} Qe7 {[%emt 0:04:25]} 21. e5 {[%emt 0:
00:00]} Nd5 {[%emt 0:00:11]} 22. Ne4 {[%emt 0:01:45]} f6 {[%emt 0:06:52]} 23.
g3 {[%emt 0:07:28]} Bh6 {[%emt 0:02:05]} 24. Nc3 {[%emt 0:11:47]} f5 {[%emt 0:
00:00]} 25. Nb1 {[%emt 0:05:50]} Rd7 {[%emt 0:02:16]} 26. Ba3 {[%emt 0:00:33]}
Qf7 {[%emt 0:00:19]} 27. Qf3 {[%emt 0:07:21]} g5 {[%emt 0:01:02]} 28. Nd2 {
[%emt 0:00:15]} Qg6 {[%emt 0:00:39]} 29. Nf1 {[%emt 0:02:59]} Bf8 {[%emt 0:00:
00]} 30. Bxf8 {[%emt 0:02:59]} Rxf8 {[%emt 0:00:04]} 31. Rcd2 {[%emt 0:00:20]}
h5 {[%emt 0:00:46]} 32. Qd3 {[%emt 0:03:42]} Qh6 {[%emt 0:02:01]} 33. Ne3 {
[%emt 0:00:26]} Ne7 {[%emt 0:02:01]} 34. Ng2 {[%emt 0:01:18]} f4 {[%emt 0:00:
00]} 35. Qe4 {[%emt 0:01:21]} Nd5 {[%emt 0:00:56]} 36. Rd3 {[%emt 0:00:31]}
Rdf7 {[%emt 0:00:33]} 37. h4 {[%emt 0:01:30]} fxg3 {[%emt 0:02:11]} 38. Rxg3 {
[%emt 0:01:42]} g4 {[%emt 0:00:04]} 39. Rf1 {[%emt 0:00:22]} Rf3 {[%emt 0:00:
00]} 40. Ne1 {[%emt 0:00:36]} R3f4 {[%emt 0:00:00]} 41. Qd3 {[%emt 0:30:25]}
Ne7 {[%emt 0:02:47]} 42. Ng2 {[%emt 0:00:00]} Rf3 {[%emt 0:00:35]} 43. Qe4 {
[%emt 0:00:00]} Qd2 {[%emt 0:03:37]} 44. Rxf3 {[%emt 0:00:00]} Rxf3 {[%emt 0:
00:00]} 45. Ne3 {[%emt 0:00:00]} Qe2 {[%emt 0:08:50]} 46. Qc2 {[%emt 0:00:00]}
Rxe3 {[%emt 0:00:00]} 47. Qc5 {[%emt 0:00:00]} Nf5 {[%emt 0:00:00]} 48. fxe3 {
[%emt 0:00:00]} g3 {[%emt 0:01:06]} 49. Rxf5 {[%emt 0:00:00]} Qh2+ {[%emt 0:00:
00]} 0-1

[Event "44th Chess Olympiad Open 2022"]
[Site "Chennai"]
[Date "2022.08.02"]
[Round "5.37"]
[White "Chekh Adm Khedr, Aram"]
[Black "Hernandez Guerrero, Gilberto"]
[Result "1/2-1/2"]
[WhiteElo "2147"]
[BlackElo "2560"]
[Annotator "TA"]
[PlyCount "76"]
[EventDate "2022.??.??"]
[TimeControl "60"]

{[%evp 19,76,37,32,14,52,49,51,52,53,24,58,29,31,12,12,8,8,0,0,0,0,11,8,0,0,0,
0,0,0,0,0,0,0,0,0,0,0,0,0,0,0,0,0,0,0,0,0,0,0,0,0,0,0,0,0,0,0,0,0]} 1. e4 {
[%emt 0:00:32] Gofshtein,L} c5 {[%emt 0:00:20]} 2. Nf3 {[%emt 0:00:23]} Nc6 {
[%emt 0:00:17]} 3. d4 {[%emt 0:00:14]} cxd4 {[%emt 0:00:06]} 4. Nxd4 {[%emt 0:
00:00]} Nf6 {[%emt 0:00:17]} 5. Nc3 {[%emt 0:00:07]} d6 {[%emt 0:00:05]} 6. Bg5
{[%emt 0:01:06]} Bd7 {[%emt 0:00:23]} 7. Qd2 {[%emt 0:04:09]} Rc8 {[%emt 0:00:
00]} 8. O-O-O {[%emt 0:03:37]} Nxd4 {[%emt 0:00:13]} 9. Qxd4 {[%emt 0:00:05]}
Qa5 {[%emt 0:00:07]} 10. Be3 {[%emt 0:04:49]} a6 {[%emt 0:08:33]} 11. f3 {
[%emt 0:02:26] B61: Sicilian: Richter-Rauzer: 6...Bd7 7 Qd2.} e5 {[%emt 0:00:
00]} 12. Qb6 {[%emt 0:09:52]} Qxb6 {[%emt 0:00:13]} 13. Bxb6 {[%emt 0:00:03] 
[#] White is slightly better.} h5 $146 {[%emt 0:01:05]} ({Predecessor:} 13...
Be7 14. g4 Be6 15. h4 O-O 16. Bh3 Rc6 17. Be3 Rfc8 18. Rd2 Ne8 19. Nd5 Kf8 20.
a3 Bd8 21. g5 g6 22. h5 gxh5 {1-0 (38) Al Modiahki,M (2571)-Christiansen,L 
(2562) Bermuda 2003 CBM 094 [Gofshtein,L]}) 14. h4 {[%emt 0:10:06]} Be7 {
[%emt 0:01:49]} 15. Kb1 {[%emt 0:06:03]} Rc6 {[%emt 0:06:42]} 16. Be3 {[%emt 0:
00:00]} Bd8 {[%emt 0:03:27] The position is equal.} 17. g3 {[%emt 0:13:43]} Ba5
{[%emt 0:04:22]} 18. Nd5 {[%emt 0:00:05]} Nxd5 {[%emt 0:00:12]} 19. Rxd5 {
[%emt 0:00:24]} Bb6 {[%emt 0:04:17]} 20. Bxb6 {[%emt 0:05:02]} Rxb6 {[%emt 0:
00:00]} 21. Bh3 {[%emt 0:00:05]} Bxh3 {[%emt 0:01:23]} 22. Rxh3 $11 {[%emt 0:
00:00] Endgame KRR-KRR} Rh6 {[%emt 0:00:11]} 23. Rh1 {[%emt 0:02:06]} Rg6 {
[%emt 0:03:32]} 24. Rg1 {[%emt 0:00:05]} Ke7 {[%emt 0:00:12]} 25. b3 {[%emt 0:
04:05]} Ke6 {[%emt 0:01:09]} 26. c4 {[%emt 0:01:07]} Rc6 {[%emt 0:00:00]} 27.
a4 {[%emt 0:01:22]} f5 {[%emt 0:02:54]} 28. exf5+ {[%emt 0:04:47]} Kxf5 {
[%emt 0:00:06]} 29. Kc2 {[%emt 0:00:03]} Rc5 {[%emt 0:07:31]} 30. Rxc5 {
[%emt 0:10:16]} (30. Rd3 {looks sharper.} b5 31. Kc3 Rc6 32. Kb4) 30... dxc5 {
[%emt 0:00:06] KR-KR} 31. a5 {[%emt 0:00:11]} Rd6 {[%emt 0:07:01]} 32. Rg2 {
[%emt 0:07:55]} Rd4 {[%emt 0:14:20]} 33. Rd2 {[%emt 0:00:00]} Rxd2+ {[%emt 0:
00:00]} 34. Kxd2 {[%emt 0:00:00]} e4 {[%emt 0:00:10]} 35. Ke3 {[%emt 0:00:00]}
exf3 {[%emt 0:00:10]} 36. Kxf3 {[%emt 0:00:00]} g6 {[%emt 0:00:05]} 37. g4+ {
[%emt 0:00:00]} Ke5 {[%emt 0:00:28]} 38. gxh5 $1 {[%emt 0:00:00]} gxh5 {
[%emt 0:00:05] Weighted Error Value: White=0.05 (flawless) /Black=0.03 
(flawless)} 1/2-1/2

[Event "44th Chess Olympiad Open 2022"]
[Site "Chennai"]
[Date "2022.08.02"]
[Round "5.38"]
[White "Petkov, Momchil"]
[Black "Kulpruethanon, Thanadon"]
[Result "1-0"]
[WhiteElo "2510"]
[BlackElo "2294"]
[Annotator "RC"]
[PlyCount "57"]
[EventDate "2022.??.??"]
[TimeControl "60"]

1. e4 {[%emt 0:00:08]} e5 {[%emt 0:00:10]} 2. Nf3 {[%emt 0:00:13]} Nc6 {
[%emt 0:00:07]} 3. Bc4 {[%emt 0:00:11]} Bc5 {[%emt 0:00:15]} 4. O-O {[%emt 0:
00:00]} Nf6 {[%emt 0:00:18]} 5. d3 {[%emt 0:00:13]} O-O {[%emt 0:01:19]} 6. Bg5
{[%emt 0:00:50]} Be7 {[%emt 0:01:20]} 7. Nc3 {[%emt 0:00:43]} d6 {[%emt 0:00:
00]} 8. a3 {[%emt 0:01:05]} h6 {[%emt 0:06:34]} 9. Be3 {[%emt 0:01:38]} Kh8 {
[%emt 0:17:29]} 10. h3 {[%emt 0:24:44]} Qe8 {[%emt 0:11:47]} 11. d4 {[%emt 0:
00:00]} Nd7 {[%emt 0:13:08]} 12. Re1 {[%emt 0:10:22]} Bd8 {[%emt 0:05:10]} 13.
Qd2 {[%emt 0:06:47]} f5 {[%emt 0:02:10]} 14. exf5 {[%emt 0:07:06]} Rxf5 {
[%emt 0:00:35]} 15. Bd5 {[%emt 0:03:11]} Nf6 {[%emt 0:08:41]} 16. Bxc6 {
[%emt 0:09:40]} bxc6 {[%emt 0:02:37]} 17. dxe5 {[%emt 0:00:04]} Rxf3 {[%emt 0:
00:00]} 18. exf6 {[%emt 0:01:00]} Qg6 {[%emt 0:00:50]} 19. fxg7+ {[%emt 0:00:
00]} Kh7 {[%emt 0:02:57]} 20. Ne2 {[%emt 0:03:18]} Bxh3 {[%emt 0:06:08]} 21.
Ng3 {[%emt 0:00:07]} Rxg3 {[%emt 0:05:31]} 22. fxg3 {[%emt 0:00:09]} Bf5 {
[%emt 0:01:11]} 23. Rf1 {[%emt 0:01:51]} Be7 {[%emt 0:03:04]} 24. Rf2 {[%emt 0:
00:00]} Rg8 {[%emt 0:00:42]} 25. Raf1 {[%emt 0:01:16]} Be6 {[%emt 0:00:35]} 26.
Qd3 {[%emt 0:02:08]} Qxd3 {[%emt 0:01:56]} 27. cxd3 {[%emt 0:00:08]} c5 {
[%emt 0:01:10]} 28. Bd2 {[%emt 0:00:12]} Bd5 {[%emt 0:03:04]} 29. Re1 {[%emt 0:
00:00]} 1-0

[Event "44th Chess Olympiad Open 2022"]
[Site "Chennai"]
[Date "2022.08.02"]
[Round "5.38"]
[White "Georgiev, Todor"]
[Black "Arunnuntapanich, Tinnakrit"]
[Result "0-1"]
[WhiteElo "2272"]
[BlackElo "2117"]
[Annotator "RC"]
[PlyCount "132"]
[EventDate "2022.??.??"]
[TimeControl "60"]

1. d4 {[%emt 0:00:10]} Nf6 {[%emt 0:00:03]} 2. c4 {[%emt 0:00:39]} g6 {[%emt 0:
00:00]} 3. Nc3 {[%emt 0:01:05]} Bg7 {[%emt 0:00:06]} 4. e4 {[%emt 0:00:23]} d6
{[%emt 0:00:05]} 5. f4 {[%emt 0:01:11]} c5 {[%emt 0:02:52]} 6. d5 {[%emt 0:00:
00]} O-O {[%emt 0:00:28]} 7. Nf3 {[%emt 0:01:04]} e6 {[%emt 0:00:41]} 8. Be2 {
[%emt 0:00:42]} exd5 {[%emt 0:04:44]} 9. cxd5 {[%emt 0:00:49]} Re8 {[%emt 0:00:
00]} 10. e5 {[%emt 0:01:19]} dxe5 {[%emt 0:00:04]} 11. fxe5 {[%emt 0:00:17]}
Ng4 {[%emt 0:00:06]} 12. e6 {[%emt 0:01:09]} fxe6 {[%emt 0:00:04]} 13. d6 {
[%emt 0:00:10]} Bd7 {[%emt 0:09:44]} 14. O-O {[%emt 0:09:27]} Nc6 {[%emt 0:00:
00]} 15. Ne4 {[%emt 0:06:40]} Rf8 {[%emt 0:10:59]} 16. h3 {[%emt 0:30:57]} Nge5
{[%emt 0:07:11]} 17. Be3 {[%emt 0:04:31]} Nxf3+ {[%emt 0:10:19]} 18. Bxf3 {
[%emt 0:00:08]} b6 {[%emt 0:00:15]} 19. Bg5 {[%emt 0:05:29]} Qc8 {[%emt 0:00:
00]} 20. Be7 {[%emt 0:06:53]} Rf7 {[%emt 0:15:28]} 21. Bg4 {[%emt 0:13:47]}
Bd4+ {[%emt 0:06:59]} 22. Kh1 {[%emt 0:00:11]} Rxf1+ {[%emt 0:09:08]} 23. Qxf1
{[%emt 0:00:02]} Nxe7 {[%emt 0:00:13]} 24. dxe7 {[%emt 0:00:11]} Qe8 {[%emt 0:
00:00]} 25. Qf3 {[%emt 0:05:34]} h5 {[%emt 0:09:00]} 26. Bxe6+ {[%emt 0:07:25]}
Bxe6 {[%emt 0:00:36]} 27. Nd6 {[%emt 0:00:05]} Qxe7 {[%emt 0:01:11]} 28. Qxa8+
{[%emt 0:00:01]} Kg7 {[%emt 0:00:24]} 29. Ne4 {[%emt 0:03:08]} Qd7 {[%emt 0:00:
00]} 30. Rf1 {[%emt 0:00:08]} Qe7 {[%emt 0:02:10]} 31. b3 {[%emt 0:00:10]} Bf5
{[%emt 0:00:09]} 32. Ng3 {[%emt 0:01:05]} Bd3 {[%emt 0:00:03]} 33. Rd1 {
[%emt 0:00:19]} Bc2 {[%emt 0:01:14]} 34. Rf1 {[%emt 0:00:18]} h4 {[%emt 0:00:
00]} 35. Qf3 {[%emt 0:01:19]} hxg3 {[%emt 0:00:30]} 36. Qxg3 {[%emt 0:00:07]}
Be4 {[%emt 0:01:23]} 37. Qg4 {[%emt 0:00:26]} Bd5 {[%emt 0:00:58]} 38. h4 {
[%emt 0:00:36]} Qe4 {[%emt 0:00:43]} 39. Qxe4 {[%emt 0:00:40]} Bxe4 {[%emt 0:
00:00]} 40. Re1 {[%emt 0:00:07]} Bd5 {[%emt 0:00:44]} 41. Re7+ {[%emt 0:30:06]}
Kf6 {[%emt 0:30:11]} 42. Rxa7 {[%emt 0:00:12]} b5 {[%emt 0:00:08]} 43. Ra5 {
[%emt 0:00:00]} b4 {[%emt 0:00:00]} 44. Kh2 {[%emt 0:00:00]} Kf5 {[%emt 0:00:
00]} 45. Ra6 {[%emt 0:00:00]} Be4 {[%emt 0:00:00]} 46. Kg3 {[%emt 0:00:00]}
Be5+ {[%emt 0:00:00]} 47. Kh3 {[%emt 0:00:00]} Kf4 {[%emt 0:07:19]} 48. g4 {
[%emt 0:00:00]} Bd3 {[%emt 0:00:00]} 49. Re6 {[%emt 0:00:00]} Bd4 {[%emt 0:00:
00]} 50. Rb6 {[%emt 0:00:00]} Kf3 {[%emt 0:00:00]} 51. h5 {[%emt 0:00:00]} g5 {
[%emt 0:00:00]} 52. Re6 {[%emt 0:02:27]} Be3 {[%emt 0:00:00]} 53. Kh2 {[%emt 0:
00:00]} Bf4+ {[%emt 0:00:00]} 54. Kg1 {[%emt 0:00:05]} Kxg4 {[%emt 0:00:00]}
55. h6 {[%emt 0:00:03]} Kh5 {[%emt 0:00:00]} 56. Kf2 {[%emt 0:00:08]} Bf5 {
[%emt 0:00:00]} 57. Rc6 {[%emt 0:00:45]} Be5 {[%emt 0:00:00]} 58. Kf3 {[%emt 0:
00:00]} g4+ {[%emt 0:00:00]} 59. Ke3 {[%emt 0:00:54]} g3 {[%emt 0:00:00]} 60.
Rxc5 {[%emt 0:00:37]} g2 {[%emt 0:00:06]} 61. Rc1 {[%emt 0:00:13]} Kxh6 {
[%emt 0:01:05]} 62. Kf3 {[%emt 0:00:52]} Bh3 {[%emt 0:00:49]} 63. Kf2 {[%emt 0:
00:00]} Kg5 {[%emt 0:01:22]} 64. Rc5 {[%emt 0:00:17]} Kf6 {[%emt 0:00:45]} 65.
Rc6+ {[%emt 0:00:19]} Kf5 {[%emt 0:00:13]} 66. Rc5 {[%emt 0:00:50]} Ke4 {
[%emt 0:00:13]} 0-1